Cogmind - Beta 13 @@@ ROGUE MODE // 2024.06.27 @ 11:50:49 Player: QR-TZ Result: Destroyed by 82-I59(z) via exploding Z-Power Performance ------------- Evolutions (1) 500 Regions Visited (5) 1000 Robots Destroyed (47) 235 Value Destroyed (1010) 1010 Prototype IDs (5) 100 Alien Tech Used (0) 0 Bonus (0) 0 TOTAL SCORE: 2845 Bonus ------- None Cogmind --------- Core Integrity 0/400 Matter 300/300 Energy 100/100 System Corruption 0% Temperature Cool (0) Movement Core (50) Location -7/Deep Caves Parts ------- > --- POWER (1) -------- (None) > --- PROPULSION (2) --- (None) > --- UTILITY (2) ------ (None) > --- WEAPON (4) ------- (None) > --- INVENTORY (5) ---- Cooled Ion Engine Makeshift Flight Unit Makeshift Flight Unit Makeshift System Shield Mini Grenade Launcher Peak State ------------ > --- POWER ------------ Cooled Ion Engine > --- PROPULSION ------- Compact Wheel Armored Wheel > --- UTILITY ---------- Medium Storage Unit Hacking Drone Bay > --- WEAPON ----------- Field Laser Minigun Minigun Mini Grenade Launcher > --- INVENTORY -------- Cooled Ion Engine Improved Carbon-fiber Leg Cooling System Medium Matter Pod Core Analyzer Medium Armor Plating Minigun Minigun Mini Grenade Launcher Axe [Rating: 29] Favorites ----------- Power Cooled Ion Engine Engine Cooled Ion Engine Propulsion Compact Wheel Leg Aluminum Leg Wheel Compact Wheel Utility Medium Storage Unit Device Cooling System Storage Medium Storage Unit Protection Medium Armor Plating Weapon Minigun Energy Gun Heavy EM Shotgun Energy Cannon Heavy Ion Cannon Ballistic Gun Minigun Launcher Mini Grenade Launcher Piercing Weapon CR-A16's Pointy Stick Build | -11 -10 -9 -9 -7 -7 ------- Run | Yrd Mat Mat Min Zio Dee Slots Evolved 2 | . . 2 . . . Power . | . . . . . . Propulsion . | . . . . . . Utility . | . . . . . . Weapon 2 | . . 2 . . . Parts Attached 49 | 8 9 22 5 4 1 Power 5 | 2 1 2 . . . Engine 5 | 2 1 2 . . . Core . | . . . . . . Reactor . | . . . . . . Propulsion 8 | 2 2 3 1 . . Treads . | . . . . . . Leg 4 | 2 2 . . . . Wheel 4 | . . 3 1 . . Hover . | . . . . . . Flight . | . . . . . . Utility 12 | 1 2 4 3 2 . Device 4 | . . 1 2 1 . Storage 2 | 1 . 1 . . . Processor . | . . . . . . Hackware . | . . . . . . Protection 6 | . 2 2 1 1 . Artifact . | . . . . . . Weapon 24 | 3 4 13 1 2 1 Energy Gun 9 | 2 . 7 . . . Energy Cannon 1 | . . . . 1 . Ballistic Gun 12 | 1 4 6 . . 1 Ballistic Cannon . | . . . . . . Launcher 1 | . . . 1 . . Special Weapon . | . . . . . . Impact Weapon . | . . . . . . Slashing Weapon . | . . . . . . Piercing Weapon 1 | . . . . 1 . Special Melee Weapon . | . . . . . . Unidentified Prototypes 3 | . . 2 . 1 . Parts Lost 8 | . . . . . 8 Power 1 | . . . . . 1 Propulsion 2 | . . . . . 2 Utility 1 | . . . . . 1 Weapon 4 | . . . . . 4 Highest Loss Streak 8 | . . . . . 8 To Critical Strikes . | . . . . . . Average Slot Usage (%) 96 | . 90 98 100 100 95 Engine 11 | . 14 11 11 11 11 Leg 8 | . 28 4 . . . Wheel 15 | . . 17 22 22 21 Device 2 | . . . 10 1 . Storage 11 | . 14 11 11 11 11 Protection 7 | . 5 10 . 9 10 Energy Gun 10 | . 1 29 18 4 . Energy Cannon 2 | . . . . 6 10 Ballistic Gun 22 | . 26 14 22 22 31 Launcher 1 | . . . 3 3 . Piercing Weapon 2 | . . . . 7 . Naked Turns 2 | . . . . . 2 Heaviest Build 42 | 12 17 37 37 42 42 Greatest Support 28 | 20 20 28 28 28 28 Greatest Overweight (x) 2 | . . 1 1 1 2 Average Overweight (x) . | . . . 1 1 . Largest Inventory Capacity 10 | 8 8 10 10 10 10 Average Capacity 9 | 6 8 8 10 10 9 Most Carried 10 | 5 8 9 10 10 10 Average Carried 8 | 3 7 7 9 9 9 Final Capacity 10 | 8 8 10 10 10 5 Final Carried 10 | 4 8 9 10 10 5 Class Distribution -------------------- 55% | Tank 28% | Mutant 15% | Gunner Dominant Class ---------------- Mutant | -10/Materials Tank | -9/Materials Gunner | -9/Mines Tank | -7/Zion Tank | -7/Deep Caves Resources | -11 -10 -9 -9 -7 -7 ----------- Run | Yrd Mat Mat Min Zio Dee Matter Collected 1411 | 280 413 359 315 44 . Remotely . | . . . . . . Salvage Created 1709 | 61 523 827 298 . . Parts 109 | 1 34 58 16 . . Haulers Intercepted 3 | . 1 2 . . . Recyclers Shooed 4 | 1 3 . . . . Parts Field Recycled . | . . . . . . Retrieved Matter . | . . . . . . Parts Self-Destructed . | . . . . . . Prevented . | . . . . . . Kills | -11 -10 -9 -9 -7 -7 ------- Run | Yrd Mat Mat Min Zio Dee Combat Hostiles Destroyed 41 | . 12 14 15 . . Guns 36 | . 12 14 10 . . AOE 5 | . . . 5 . . Classes Destroyed 9 | 1 5 2 1 . . Worker 3 | . 2 1 . . . Hauler 3 | . 1 2 . . . Recycler 3 | 1 1 . 1 . . Watcher 3 | . 1 2 . . . Swarmer 15 | . 6 2 7 . . Grunt 15 | . 6 7 2 . . Brawler 1 | . . 1 . . . Sentry 4 | . . 4 . . . Assembled 6 | . . . 6 . . Best Kill Streak 6 | 1 5 6 6 . . Combat Bots Only 6 | . 3 5 6 . . Max Kills in Single Turn 3 | 1 1 3 3 . . Gunslinging 1 | . . 1 1 . . Exploded 2 | . . . 2 . . Melee . | . . . . . . Uniques/NPCs Destroyed . | . . . . . . Combat | -11 -10 -9 -9 -7 -7 -------- Run | Yrd Mat Mat Min Zio Dee Hostile Shots Fired 182 | . 71 21 39 . 51 Missed 54 | . 22 7 7 . 18 Damage Taken 2194 | . 526 175 335 . 1158 Core 528 | . 81 14 98 . 335 Absorbed by Shields . | . . . . . . Regen/Repaired (Parts) 45 | . 45 . . . . Core Remaining (%) 83 | 100 67 . . . . Volleys Fired 99 | 3 50 20 25 1 . Largest 4 | 2 2 4 4 1 . Hottest 213 | 80 40 213 176 25 . Shots Fired 272 | 6 100 76 89 1 . Gun 267 | 6 100 76 84 1 . Cannon . | . . . . . . Launcher 5 | . . . 5 . . Special . | . . . . . . Kinetic 157 | . 100 14 42 1 . Thermal 56 | 6 . 8 42 . . Explosive 5 | . . . 5 . . Electromagnetic 54 | . . 54 . . . Robot Hit Streak 10 | 5 9 10 8 . . Robot Miss Streak 8 | . 6 5 8 . . Penetration Max . | . . . . . . Secondary Targets 4 | . 1 2 1 . . Max Gunslinging Chain 1 | . 1 1 1 . . Shots Hit Robots 135 | 5 56 39 35 . . Core Hits 76 | 2 23 30 21 . . Critical Kills . | . . . . . . Critical Parts Destroyed 1 | . 1 . . . . Critical Strikes 2 | . 1 . 1 . . Burn 1 | . . . 1 . . Destroy 1 | . 1 . . . . Melee Attacks 1 | . . . . 1 . Impact . | . . . . . . Slashing . | . . . . . . Piercing 1 | . . . . 1 . Sneak Attacks . | . . . . . . Combat Hostiles . | . . . . . . Follow-up Attacks . | . . . . . . Damage Inflicted 2414 | 54 715 748 897 . . Guns 2125 | 54 715 748 608 . . Cannons . | . . . . . . Explosions 289 | . . . 289 . . Melee . | . . . . . . Ramming . | . . . . . . Kinetic 994 | . 715 45 234 . . Thermal 478 | 54 . 50 374 . . Explosive 289 | . . . 289 . . Electromagnetic 653 | . . 653 . . . Impact . | . . . . . . Slashing . | . . . . . . Piercing . | . . . . . . Highest Corruption . | . . . . . . Average Corruption . | . . . . . . Corruption Purged . | . . . . . . Corruption Blocked . | . . . . . . Overload Shots . | . . . . . . Overflow Damage . | . . . . . . Projectiles . | . . . . . . Explosions . | . . . . . . Melee . | . . . . . . Knockbacks . | . . . . . . Impact . | . . . . . . Kinetic . | . . . . . . Secondary . | . . . . . . Self-Inflicted Damage 37 | . . . 37 . . Shots 2 | . . . 2 . . Rammed . | . . . . . . Targets Rammed . | . . . . . . Kicked . | . . . . . . Crushed . | . . . . . . Highest Temperature 465 | 54 27 465 429 3 8 Average Temperature 150 | 29 9 163 200 3 5 Received Heat Transfer 563 | . 153 69 44 . 297 Effects 9 | . . 3 6 . . Shutdowns 2 | . . 2 . . . Energy Bleed 2 | . . . 2 . . Interference 3 | . . . 3 . . Matter Decay 1 | . . . 1 . . Short Circuit 1 | . . 1 . . . Siege Activations . | . . . . . . Robots Corrupted . | . . . . . . Combat Hostiles . | . . . . . . Parts Fried 1 | . . 1 . . . Impact Corruptions . | . . . . . . Robots Melted . | . . . . . . Combat Hostiles . | . . . . . . Parts Melted 1 | . . . 1 . . Heat Transferred 1124 | 125 . 111 888 . . Parts Sabotaged . | . . . . . . Parts Stolen . | . . . . . . Parts Stripped . | . . . . . . Power Chain Reactions . | . . . . . . Alert | -11 -10 -9 -9 -7 -7 ------- Run | Yrd Mat Mat Min Zio Dee Peak Influence 416 | 5 265 283 416 . . Initial 109 | . 3 54 109 . . Average 174 | 1 117 168 325 . . Maximum Alert Level 2 | . 1 1 2 . . Low Security (%) 63 | 100 80 68 13 . . Level 1 32 | . 19 31 63 . . Level 2 4 | . . . 22 . . Level 3 . | . . . . . . Level 4 . | . . . . . . Level 5 . | . . . . . . High Security . | . . . . . . Max Security . | . . . . . . Squads Dispatched 5 | . 3 2 . . . Investigation 2 | . . 2 . . . Extermination . | . . . . . . Reinforcement 3 | . 3 . . . . Assault . | . . . . . . Garrison . | . . . . . . Intercept . | . . . . . . Searches Triggered . | . . . . . . Construction Impeded . | . . . . . . Haulers Reinforced . | . . . . . . Active Scanning Responses . | . . . . . . Cargo Convoy Interrupts . | . . . . . . Stealth | -11 -10 -9 -9 -7 -7 --------- Run | Yrd Mat Mat Min Zio Dee Distress Signals 4 | . 2 2 . . . Communications Jammed . | . . . . . . Distress Signals . | . . . . . . Times Spotted 62 | . 21 21 17 . 3 Peak Tracking Total 9 | . 5 5 9 . 3 Tactical Retreats 4 | . 1 1 2 . . Traps | -11 -10 -9 -9 -7 -7 ------- Run | Yrd Mat Mat Min Zio Dee Traps Triggered 2 | . 1 1 . . . Indirectly . | . . . . . . Trap Hack Attempts . | . . . . . . Triggered . | . . . . . . Disarmed . | . . . . . . Reprogrammed . | . . . . . . Reused . | . . . . . . Traps Extracted . | . . . . . . Installed . | . . . . . . Triggered . | . . . . . . Machines | -11 -10 -9 -9 -7 -7 ---------- Run | Yrd Mat Mat Min Zio Dee Machines Disabled 3 | . 1 . 2 . . Max in Single Turn 1 | . 1 . 1 . . Machines Repaired . | . . . . . . Machines Dismantled . | . . . . . . Machines Sabotaged . | . . . . . . Overloaded Fab Kills . | . . . . . . Hacking | -11 -10 -9 -9 -7 -7 --------- Run | Yrd Mat Mat Min Zio Dee Machines Accessed 11 | . 6 5 . . . Terminals 10 | . 5 5 . . . Fabricators . | . . . . . . Repair Stations 1 | . 1 . . . . Recycling Units . | . . . . . . Scanalyzers . | . . . . . . Garrison Access . | . . . . . . Total Hacks 26 | . 11 15 . . . Successful 12 | . 9 3 . . . Failed 14 | . 2 12 . . . Catastrophic 1 | . . 1 . . . Database Lockouts . | . . . . . . Manual 7 | . . . . 7 . Terminals 24 | . 9 15 . . . Fabricators . | . . . . . . Repair Stations 2 | . 2 . . . . Recycling Units . | . . . . . . Scanalyzers . | . . . . . . Garrison Access . | . . . . . . Terminal Hacks 10 | . 7 3 . . . Record 1 | . . 1 . . . Robot Analysis 2 | . 2 . . . . Prototype ID Bank 1 | . 1 . . . . Emergency Access Points 2 | . 1 1 . . . Unreport Threat 1 | . . 1 . . . Registered Components 1 | . 1 . . . . Zone Layout 2 | . 2 . . . . Fabricator Hacks . | . . . . . . Repair Station Hacks 2 | . 2 . . . . Scan Component 1 | . 1 . . . . Repair 1 | . 1 . . . . Recycling Unit Hacks . | . . . . . . Scanalyzer . | . . . . . . Garrison Access Hacks . | . . . . . . Unauthorized Hacks . | . . . . . . Terminals . | . . . . . . Fabricators . | . . . . . . Repair Stations . | . . . . . . Recycling Units . | . . . . . . Scanalyzers . | . . . . . . Garrison Access . | . . . . . . Data Cores Recovered . | . . . . . . Used . | . . . . . . Hacking Detections 9 | . 4 5 . . . Full Trace Events 1 | . . 1 . . . Feedback Events . | . . . . . . Feedback Blocked . | . . . . . . Robot Schematics Acquired 4 | . . . . 4 . Robots Built . | . . . . . . Authchips . | . . . . . . Time . | . . . . . . Total Robot Build Rating . | . . . . . . Part Schematics Acquired 15 | . . . . 15 . Parts Built . | . . . . . . Authchips . | . . . . . . Time . | . . . . . . Total Part Build Rating . | . . . . . . Parts Repaired 1 | . 1 . . . . Time 26 | . 26 . . . . Parts Recycled . | . . . . . . Recycled Matter . | . . . . . . Retrieved Matter . | . . . . . . Retrieved Components . | . . . . . . Parts Scanalyzed . | . . . . . . Part Schematics Acquired . | . . . . . . Parts Damaged . | . . . . . . Bothacking | -11 -10 -9 -9 -7 -7 ------------ Run | Yrd Mat Mat Min Zio Dee Used RIF Installer . | . . . . . . Robots Hacked . | . . . . . . Non-combat . | . . . . . . Combat . | . . . . . . Robot Hacks Applied . | . . . . . . Relay Couplers Released . | . . . . . . Fabnet Peak Effective % . | . . . . . . Robots Rewired . | . . . . . . Allies Hacked . | . . . . . . Hacks Repelled . | . . . . . . Allies | -11 -10 -9 -9 -7 -7 -------- Run | Yrd Mat Mat Min Zio Dee Total Allies . | . . . . . . Largest Group . | . . . . . . Highest-Rated Group . | . . . . . . Highest-Rated Ally . | . . . . . . Total Orders . | . . . . . . Ally Attacks . | . . . . . . Total Damage . | . . . . . . Kills . | . . . . . . Allies Corrupted . | . . . . . . Allies Melted . | . . . . . . Intel | -11 -10 -9 -9 -7 -7 ------- Run | Yrd Mat Mat Min Zio Dee Robot Analysis Total 2 | . 2 . . . . Derelict Logs Recovered 2 | . . . 1 1 . Drone Launches . | . . . . . . Drone Recoveries . | . . . . . . Exploration | -11 -10 -9 -9 -7 -7 ------------- Run | Yrd Mat Mat Min Zio Dee Turns Passed 3264 | 74 847 693 426 998 226 Spaces Moved 2359 | 50 487 470 285 862 205 Core 21 | 16 . . . . 5 Treads . | . . . . . . Legs 630 | 34 487 109 . . . Wheels 1708 | . . 361 285 862 200 Hover . | . . . . . . Flight . | . . . . . . Fastest Speed 50 | 50 120 90 110 110 50 Average Speed 111 | 97 120 109 110 110 108 Slowest Speed 190 | 120 120 190 110 110 150 Overloaded Moves . | . . . . . . Propulsion Burnouts . | . . . . . . Robots Hopped . | . . . . . . Cave-ins Triggered . | . . . . . . Exploration Rate (%) 44 | 3 73 50 43 70 30 Regions Visited 5 Branch Regions 3 Pre-discovered Areas 3 | . . . 1 2 . Known Exits Taken . | . . . . . . Unknown Exits Taken 5 | 1 1 1 1 1 . Scrap Searched 5 | . . . 1 4 . Spaces Dug . | . . . . . . Terrain Destroyed 37 | . . . 37 . . Melee . | . . . . . . Projectile . | . . . . . . AOE 37 | . . . 37 . . Terrain Rammed . | . . . . . . Walls Destroyed . | . . . . . . Machines Disabled . | . . . . . . Actions | -11 -10 -9 -9 -7 -7 --------- Run | Yrd Mat Mat Min Zio Dee Total 2785 | 65 652 603 346 912 207 Wait 205 | . 90 59 30 26 . Move 2354 | 49 486 469 284 861 205 Hop . | . . . . . . Pick Up 32 | 4 7 11 1 9 . Fast Attach 20 | 6 3 10 . 1 . Attach 1 | . . 1 . . . Detach 1 | . 1 . . . . Swap 28 | 2 6 11 5 3 1 Drop 44 | 1 9 22 1 10 1 Fire 99 | 3 50 20 25 1 . Melee 1 | . . . . 1 . Ram . | . . . . . . Kick . | . . . . . . Crush . | . . . . . . Escape Stasis . | . . . . . . Rewire . | . . . . . . Trap . | . . . . . . Miscellaneous . | . . . . . . Route ------- -11/Scrapyard -10/Materials (discovered 3 exits: *Mat / [*Min x2]) -9/Materials -9/Mines (discovered 2 exits: [*Mat] / *Zio) -7/Zion -7/Deep Caves History --------- Turn | Location | Event 31 | -11/Scrapyard | Discovered new exit (range 15) 75 | -11/Scrapyard | Entered Materials 126 | -10/Materials | Discovered new exit (range 6) 316 | -10/Materials | Build established: Mutant 497 | -10/Materials | Discovered new exit (range 8) 858 | -10/Materials | Discovered new exit (range 14) 893 | -10/Materials | Repaired Lgt. Armor Plating 922 | -10/Materials | Entered another Materials area 922 | -9/Materials | Evolved 2 slots: Weapon x2 1229 | -9/Materials | Build established: Tank 1552 | -9/Materials | Discovered new exit (range 14) 1615 | -9/Materials | Entered Mines 1713 | -9/Mines | Discovered new exit (range 6) 1884 | -9/Mines | Assembled infested the area 1972 | -9/Mines | Build established: Gunner 2039 | -9/Mines | A Derelict revealed a hidden shortcut to a safe place 2041 | -9/Mines | Entered Zion 2179 | -7/Zion | Given the Hacking Drone Bay 2179 | -7/Zion | Found Prototype Device 2180 | -7/Zion | Identified Hacking Drone Bay 2201 | -7/Zion | Found CR-A16's Pointy Stick 2417 | -7/Zion | Acquired unknown access codes intercepted by a Zionite 2473 | -7/Zion | Build established: Tank 2474 | -7/Zion | Learned Factory terminal intel 2658 | -7/Zion | Learned location of Quarantine (-2) 3020 | -7/Zion | Opened final containment barrier to the Deep Caves 3036 | -7/Zion | Discovered new exit (range 3) 3036 | -7/Zion | Saw the warning signs outside the Deep Caves entrance 3039 | -7/Zion | Entered Deep Caves 3228 | -7/Deep Caves | Attacked by Z-Imprinter 3247 | -7/Deep Caves | Z-Facility disabled 3261 | -7/Deep Caves | Core integrity fell below 50% 3264 | -7/Deep Caves | Core integrity fell below 20% 3265 | -7/Deep Caves | Destroyed by 82-I59(z) via exploding Z-Power Last Messages --------------- >>\\3RCT Containment barrier disabled. Signature recorded so we know who to blame when the place goes to hell. Again. 03036_ EXIT=FOUND 03036_ The room is plastered with warning signs of various forms. [Achievement: Signs Are For Wimps] LOCATION=UNKNOWN GOAL=ESCAPE 03220_ NEW_ZION: Z-Facility proximity alert. Z-Imprinter: GET AWAY FROM HERE! I've worked too hard for our future just to have you ruin everything! 03243_ Hvy. Ion Cannon destroyed. 03245_ Med. Armor Plating destroyed. 03247_ Z-Facility disabled. 03249_ Com. Wheel destroyed. 03249_ Minigun destroyed. 03260_ Arm. Wheel destroyed. 03260_ Dropped Med. Storage Unit. 03263_ Cld. Ion Engine destroyed. 03265_ Z-Power explodes. Map ----- +----------------------------------------------------+ | ?????????? #? | | ?????????? ##? | | ?????????? #?? | | ?????????????"" """""" ##? | | ????????????????"""""""" ## | | ????????????????"""""""" | | ???????????????""""""""" | | ???????????????"""""" | | ???????????????""""""""" | | ????????????????"""""""" ## | | ????????????????""""""" ##? | | ???????????????""""""""" #?? | | ???????????????"""" " " #?? | | ???????????????""""" o ?? | | ???????????????"""" ?? | | ???????????????""""" ?? | | ???????????????""""" #?? | | ???????????????""""""" ??? | | ??????????????""""""""""o ??? | | ??????????????""" ??? | | ??????????????""" ??? | | ??????????????""" #??? | | ??????????????""" ? ???? | | ??????????????""" ???????? | | ??????????????""" ????????? | | ??????????????""" @ ????????? | | ??????????????""" ????????? | | ??????????????""" ????????? | | ??????????????""""""""""o ?????????? | | ????????????????"""""" ?????????? | | ?????????????????? ??????????? | | ????????????????? ??????????? | | ?????????????????? ??????????? | | ?????????????????? ???????????? | | ????????????????? ???????????? | | ????????????????? ????????????? | | ??????????????????? ##### ????????????? | | ??????????????????? ####????##??????????????? | | ??????????????????? #????????????????????????? | | ?????????????????????###?????????????????????????? | | ?????????????????????????????????????????????????? | | ?????????????????????????????????????????????????? | | | | | | | | | | | | | | | | | +----------------------------------------------------+ Best States ------------- Heat Dissipation 50 Energy Generation 14 Energy Capacity 280 Matter Stores 300 Matter Capacity 300 Sight Range 16 Terrain Scan Density 10 Armor Coverage 225 Evasion (%) 55 Item Schematics ----------------- Enh. Optical Array | -7/Zion | Archive Imp. Shield Generator | -7/Zion | Archive Ripper | -7/Zion | Archive Arm. Leg | -7/Zion | Archive Enh. Gauss Cannon | -7/Zion | Archive Mak. Terrain Scan Processor | -7/Zion | Archive 0b10 Decoder Chip [Skirmisher] | -7/Zion | Archive Med. Treads | -7/Zion | Archive Lgt. Fission Core | -7/Zion | Archive Power Maul | -7/Zion | Archive Flexi-carbon Leg | -7/Zion | Archive Gatling Laser | -7/Zion | Archive Power Amplifier | -7/Zion | Archive Recalibrator | -7/Zion | Archive Recoil Nullifier | -7/Zion | Archive Robot Schematics ------------------ L-41 Fighter | -7/Zion | Archive S-27 Virus | -7/Zion | Archive C-57 Dissector | -7/Zion | Archive M-14 Sweeper | -7/Zion | Archive Fabricated ------------ Nothing Alien Tech Used ----------------- None Achievements -------------- Signs Are For Wimps Challenges ------------ None Game ------ Seed ExoskeletonFrostStabilizer Manual? 0 Play Time 00:41:44 Cumulative 36.6 hours Start 2024.06.27 @ 10:23:33 End 2024.06.27 @ 11:50:49 Sessions 1 Manual Loads 0 Difficulty Rogue Special Mode None Game No. 20 Rogue 20 Adventurer 0 Explorer 0 Win Type - Total 2 Types 1/0/1/0/0/0/0/0/0 Lore% 31 Gallery% 38 Achievement% 33 Wizard Run 0 Options --------- Layout 0 ASCII 0 Keyboard 0 Movement Mouse Keybinds 0 Fullscreen 1 Font 24/Smallcaps Map View 76x50 Zoom Use 0% Tactical HUD 1 Map Filters NONE Filters NONE Steam 1 RUN: fb42bf6c-2e10-4732-9980-53fa2295cc0e